Cogmind - Beta 17 @@@ ROGUE MODE // 2026.06.25 @ 00:55:28 Player: Pitt Result: Destroyed by Y-54 Guardian with Flak Gun Performance ------------- Evolutions (3) 1500 Regions Visited (6) 1200 Robots Destroyed (76) 380 Value Destroyed (2313) 2313 Prototype IDs (9) 180 Alien Tech Used (0) 0 Bonus (200) 200 TOTAL SCORE: 5773 Bonus ------- Entered Garrisons 200 Cogmind --------- Core Integrity 0/700 Matter 8/300 Energy 100/100 System Corruption 1% Temperature Cool (6) Movement Core (100) Ox1 Location -7/Garrison Parts ------- > --- POWER (2) -------- (None) > --- PROPULSION (3) --- (None) > --- UTILITY (6) ------ Improved Heat Sink Hacking Suite > --- WEAPON (2) ------- Mini Assault Cannon > --- INVENTORY (5) ---- Transmission Jammer Recalibrator Precision Grenade Launcher Datajack Remote Datajack Peak State ------------ > --- POWER ------------ Light Nuclear Core Cooled Deuterium Engine > --- PROPULSION ------- Improved Carbon-fiber Leg Improved Carbon-fiber Leg Improved Carbon-fiber Leg > --- UTILITY ---------- Improved Heat Sink Small Storage Unit Improved Signal Interpreter Melee Analysis Suite Improved Light Armor Plating Drone Bay > --- WEAPON ----------- Precision Assault Rifle Mini Assault Cannon > --- INVENTORY -------- Trap Scanner Transmission Jammer Hacking Suite Recalibrator Advanced Beam Cannon Precision Grenade Launcher Datajack Remote Datajack [Rating: 50] Favorites ----------- Power Light Ion Engine Engine Light Ion Engine Power Core Light Nuclear Core Propulsion Wheel Leg Improved Carbon-fiber Leg Wheel Wheel Flight Unit Improved Flight Unit Utility Small Storage Unit Device Improved Terrain Scanner Storage Small Storage Unit Processor Melee Analysis Suite Hackware Hacking Suite Protection Improved Light Armor Plating Weapon Particle Gun Energy Gun Particle Gun Energy Cannon Advanced Beam Cannon Ballistic Gun Assault Rifle Ballistic Cannon Mini Assault Cannon Launcher Precision Grenade Launcher Special Weapon Mining Laser Slashing Weapon Katana Special Melee Weapon Improved Datajack Build | -11 -10 -9 -8 -7 -7 -7 ------- Run | Yrd Mat Mat Mat Fac Sto Gar Slots Evolved 6 | . . 2 2 2 . . Power 1 | . . . 1 . . . Propulsion 1 | . . . 1 . . . Utility 4 | . . 2 . 2 . . Weapon . | . . . . . . . Parts Attached 81 | 8 5 11 8 9 37 3 Power 17 | 1 1 2 3 1 8 1 Engine 9 | 1 1 1 2 1 3 . Core 8 | . . 1 1 . 5 1 Reactor . | . . . . . . . Propulsion 22 | 2 . 3 1 5 11 . Treads . | . . . . . . . Leg 8 | . . . . . 8 . Wheel 5 | 2 . 3 . . . . Hover . | . . . . . . . Flight 9 | . . . 1 5 3 . Utility 25 | 3 . 3 2 3 12 2 Device 18 | 2 . 3 1 3 8 1 Storage 1 | 1 . . . . . . Processor 2 | . . . 1 . 1 . Hackware 1 | . . . . . . 1 Protection 3 | . . . . . 3 . Artifact . | . . . . . . . Weapon 17 | 2 4 3 2 . 6 . Energy Gun 4 | . 2 . . . 2 . Energy Cannon 1 | . . 1 . . . . Ballistic Gun 4 | 2 . . 1 . 1 . Ballistic Cannon 1 | . . . . . 1 . Launcher 4 | . 1 1 . . 2 . Special Weapon 1 | . 1 . . . . . Impact Weapon . | . . . . . . . Slashing Weapon 1 | . . . 1 . . . Piercing Weapon . | . . . . . . . Special Melee Weapon 1 | . . 1 . . . . Unidentified Prototypes 9 | . . 1 2 1 5 . Parts Lost 41 | . . 4 3 . 23 11 Power 10 | . . 2 1 . 5 2 Propulsion 11 | . . . 1 . 7 3 Utility 15 | . . 2 1 . 8 4 Weapon 5 | . . . . . 3 2 Highest Loss Streak 9 | . . 3 2 . 8 9 To Critical Strikes . | . . . . . . . Average Backups 6 | 4 6 6 7 7 7 6 Power . | 1 1 . . . . . Propulsion 1 | 1 2 1 1 . . . Utility 2 | 1 1 1 2 2 4 2 Weapon 2 | . 2 3 2 1 1 1 Tool/Special . | . . . . . . . Unused Backups 10 | 2 . . 4 . 1 3 Power 1 | 1 . . . . . . Propulsion 2 | 1 . . . . 1 . Utility 5 | . . . 4 . . 1 Weapon . | . . . . . . . Tool/Special 2 | . . . . . . 2 Average Slot Usage (%) 94 | . 100 99 88 84 88 88 Engine 10 | . 14 9 12 7 6 7 Core 2 | . . 1 . 7 5 5 Leg 3 | . . . . . 17 20 Wheel 16 | . 28 22 18 . . . Flight 2 | . . . 3 17 3 . Device 24 | . 16 32 23 25 14 23 Storage 9 | . 11 11 9 6 7 5 Processor 3 | . . . 2 7 14 1 Energy Gun 7 | . 11 13 . . 4 . Energy Cannon 2 | . . . 8 1 2 1 Ballistic Gun 6 | . 16 6 3 . 2 6 Slashing Weapon 1 | . . . 3 5 . . Special Melee Weapon 1 | . . 1 2 1 . . Peak Build Rating 50 | 9 11 19 24 38 50 50 Average Rating 20 | 5 8 15 19 30 38 43 On Entrance 20 | . 9 11 16 22 38 50 Avg Prop Armor Cover (%) 1 | . . . 1 . . . Naked Turns . | . . . . . . . Heaviest Build 43 | 14 17 20 21 21 39 43 Greatest Support 54 | 32 32 32 36 26 54 54 Greatest Overweight (x) 6 | . . . 3 1 5 6 Average Overweight (x) . | . . . . . . . Largest Inventory Capacity 8 | 8 8 8 8 8 8 8 Average Capacity 7 | 7 7 8 8 7 8 7 Most Carried 8 | 8 8 8 8 8 8 8 Average Carried 6 | 4 6 6 7 6 7 6 Final Capacity 8 | 5 8 8 8 8 8 5 Final Carried 8 | 5 8 7 8 8 8 5 Class Distribution -------------------- 70% | Scavenger-Mutant 29% | Mutant Dominant Class ---------------- Mutant | -10/Materials Scavenger-Mutant | -9/Materials Scavenger-Mutant | -8/Materials Mutant | -7/Factory Scavenger-Mutant | -7/Storage Scavenger-Mutant | -7/Garrison Resources | -11 -10 -9 -8 -7 -7 -7 ----------- Run | Yrd Mat Mat Mat Fac Sto Gar Matter Collected 1885 | 215 150 306 375 23 629 187 Remotely 98 | . . . . . 98 . Salvage Created 2734 | 131 183 532 520 49 989 330 Parts 160 | 17 14 30 28 2 49 20 Haulers Intercepted 1 | . . . 1 . . . Recyclers Shooed 3 | 1 . 1 . . 1 . Parts Field Recycled . | . . . . . . . Retrieved Matter . | . . . . . . . Parts Self-Destructed . | . . . . . . . Prevented . | . . . . . . . Parts Restored . | . . . . . . . Kills | -11 -10 -9 -8 -7 -7 -7 ------- Run | Yrd Mat Mat Mat Fac Sto Gar Combat Hostiles Destroyed 52 | . 2 12 6 . 20 12 Melee 7 | . . . 3 . 4 . Guns 25 | . 2 9 . . 11 3 Cannons 9 | . . . 3 . 4 2 AOE 10 | . . 3 . . . 7 Classes Destroyed 12 | 2 3 3 1 1 2 . Worker 4 | . . 1 1 1 1 . Builder 5 | . 3 . 2 . . . Tunneler 6 | 5 . 1 . . . . Hauler 1 | . . . 1 . . . Recycler 4 | 1 . 1 1 . 1 . Mechanic 1 | . . . . 1 . . Operator 1 | . . . . . 1 . Watcher 2 | . 1 1 . . . . Swarmer 13 | . . 6 . . 4 3 Grunt 25 | . 2 4 3 . 8 8 Sentry 12 | . . 2 3 . 6 1 Programmer 2 | . . . . . 2 . Best Kill Streak 5 | 3 2 3 3 1 3 5 Combat Bots Only 5 | . 1 3 2 . 3 5 Max Kills in Single Turn 3 | 1 1 3 1 1 1 2 Gunslinging 1 | . . 1 . . . . Exploded 3 | . . 3 . . . 2 Melee 1 | . . . 1 . 1 . Uniques/NPCs Destroyed . | . . . . . . . Combat | -11 -10 -9 -8 -7 -7 -7 -------- Run | Yrd Mat Mat Mat Fac Sto Gar Hostile Shots Fired 580 | . 9 45 21 13 341 151 Missed 197 | . 4 9 5 3 123 53 Hits 383 | . 5 36 16 10 218 98 Projectile 383 | . 5 36 16 10 218 98 AOE 1 | . . . 1 . . . Critical Strikes 10 | . . 1 2 . 3 4 Damage Taken 4848 | . 104 640 285 101 2339 1379 Core 1089 | . 37 293 56 18 421 264 Absorbed by Shields . | . . . . . . . Regen/Repaired (Parts) 106 | . 11 . . 95 . . Core Remaining (%) 75 | 100 85 26 89 . . . Volleys Fired 250 | 12 19 60 26 10 79 44 Largest 2 | 2 2 2 1 1 2 2 Hottest 149 | 40 130 130 100 68 149 68 Shots Fired 350 | 24 32 86 26 10 116 56 Gun 252 | 24 26 75 . . 95 32 Cannon 72 | . . . 25 10 21 16 Launcher 14 | . 4 2 . . . 8 Special 12 | . 2 9 1 . . . Kinetic 157 | 24 24 13 . . 54 42 Thermal 179 | . 4 71 26 10 62 6 Explosive 14 | . 4 2 . . . 8 Electromagnetic . | . . . . . . . Robot Hit Streak 26 | 8 4 10 13 2 26 11 Robot Miss Streak 6 | 2 2 3 3 2 6 3 Penetration Max . | . . . . . . . Secondary Targets 2 | . . 1 . . 1 . Max Gunslinging Chain 1 | . . 1 . . 1 . Shots Hit Robots 256 | 16 13 45 31 8 104 39 Core Hits 125 | 7 8 21 12 2 51 24 Critical Kills . | . . . . . . . Critical Parts Destroyed . | . . . . . . . Critical Strikes 14 | . 1 4 . . 9 . Burn 5 | . 1 4 . . . . Blast 2 | . . . . . 2 . Sever 7 | . . . . . 7 . Melee Attacks 61 | . . 6 24 3 28 . Impact . | . . . . . . . Slashing 47 | . . . 19 1 27 . Piercing . | . . . . . . . Sneak Attacks 18 | . . 6 7 3 2 . Combat Hostiles . | . . . . . . . Follow-up Attacks . | . . . . . . . Damage Inflicted 6287 | 206 184 816 742 198 2558 1583 Guns 2838 | 206 184 587 . . 1455 406 Cannons 1052 | . . . 329 124 295 304 Explosions 1079 | . . 229 . . . 850 Melee 1295 | . . . 413 74 808 . Ramming 23 | . . . . . . 23 Kinetic 1840 | 206 166 107 . . 733 628 Thermal 2050 | . 18 480 329 124 1017 82 Explosive 1079 | . . 229 . . . 850 Electromagnetic . | . . . . . . . Impact . | . . . . . . . Slashing 1295 | . . . 413 74 808 . Piercing . | . . . . . . . Highest Corruption 1 | . . . . . 1 1 Average Corruption 1 | . . . . . 1 1 Corruption Purged . | . . . . . . . Corruption Blocked . | . . . . . . . Effects 11 | . . . . . 6 5 Message Errors 2 | . . . . . 1 1 Matter Fused 2 | . . . . . 1 1 Heat Flow Errors 3 | . . . . . 2 1 Parts Rejected 1 | . . . . . . 1 Data Loss (minor) 3 | . . . . . 2 1 Overload Shots . | . . . . . . . Overflow Damage 128 | . . 10 21 34 49 14 Projectiles 68 | . . . 21 . 47 . Explosions 24 | . . 10 . . . 14 Melee 36 | . . . . 34 2 . Knockbacks 5 | . . . . . 1 4 Impact 1 | . . . . . . 1 Kinetic 4 | . . . . . 1 3 Secondary . | . . . . . . . Self-Inflicted Damage 87 | . 51 . . . . 36 Shots 5 | . 3 . . . . 2 Rammed . | . . . . . . . Targets Rammed 1 | . . . . . . 1 Kicked 1 | . . . . . . 1 Crushed . | . . . . . . . Highest Temperature 613 | 6 69 613 116 263 391 116 Average Temperature 98 | 6 23 131 40 132 72 35 Received Heat Transfer 1917 | . 30 189 144 45 813 696 Effects 14 | . . 8 . 1 5 . Shutdowns 3 | . . 1 . . 2 . Energy Bleed 2 | . . 2 . . . . Interference 4 | . . . . 1 3 . Matter Decay 1 | . . 1 . . . . Short Circuit 1 | . . 1 . . . . Damage (core) 3 | . . 3 . . . . Siege Activations . | . . . . . . . Martial Activations . | . . . . . . . Shielding Activations . | . . . . . . . Robots Disrupted . | . . . . . . . Combat Hostiles . | . . . . . . . Robots Corrupted . | . . . . . . . Combat Hostiles . | . . . . . . . Parts Fried 1 | . . . . . 1 . Impact Corruptions . | . . . . . . . Robots Melted 1 | . . . . . 1 . Combat Hostiles 1 | . . . . . 1 . Parts Melted 7 | . . . 2 . 5 . Heat Transferred 4595 | . 111 1406 592 222 2116 148 Parts Sabotaged . | . . . . . . . Parts Stolen . | . . . . . . . Parts Stripped . | . . . . . . . Power Chain Reactions . | . . . . . . . Alert | -11 -10 -9 -8 -7 -7 -7 ------- Run | Yrd Mat Mat Mat Fac Sto Gar Maximum Alert Level 1 | . . . . . . 1 Low Security (%) 98 | 100 100 100 100 100 100 43 Level 1 1 | . . . . . . 56 Level 2 . | . . . . . . . Level 3 . | . . . . . . . Level 4 . | . . . . . . . Level 5 . | . . . . . . . High Security . | . . . . . . . Max Security . | . . . . . . . Peak Influence 334 | 15 39 190 79 45 74 334 Initial 79 | . . . 79 16 15 16 Average 17 | 2 2 11 12 3 24 185 Influence Increases 1769 | 30 99 360 197 70 605 408 Destroy 0b10 Robot/C 1040 | . 40 240 120 . 400 240 Destroy 0b10 Robot/NC 120 | 30 20 20 25 10 15 . Destroy Leader 216 | . 2 52 32 . 110 20 Successful Hack 40 | . 8 14 . . 18 . Disable Machine 105 | . . 15 15 15 45 15 Destroy Structure 83 | . 14 19 5 . 2 43 Lose Combat Pursuer 165 | . 15 . . 45 15 90 Influence Decreases 1455 | 30 99 172 348 72 614 120 Entered New Map 160 | . . . 109 21 20 10 Time Decay 929 | 30 99 142 218 51 389 . Lost Part 366 | . . 30 21 . 205 110 Squads Dispatched 8 | . . . 1 . 7 . Investigation 1 | . . . 1 . . . Extermination 2 | . . . . . 2 . Reinforcement 2 | . . . . . 2 . Assault . | . . . . . . . Garrison 3 | . . . . . 3 . Intercept . | . . . . . . . Searches Triggered . | . . . . . . . Construction Impeded . | . . . . . . . Haulers Reinforced 1 | . . . . . 1 . Active Scanning Responses . | . . . . . . . Cargo Convoy Interrupts . | . . . . . . . Stealth | -11 -10 -9 -8 -7 -7 -7 --------- Run | Yrd Mat Mat Mat Fac Sto Gar Distress Signals 2 | . . 1 . . 1 . Communications Jammed . | . . . . . . . Distress Signals . | . . . . . . . Times Spotted 82 | . 6 17 7 7 25 20 Peak Tracking Total 9 | . 4 4 3 7 5 9 Tactical Retreats 8 | . 1 . . 1 1 5 Traps | -11 -10 -9 -8 -7 -7 -7 ------- Run | Yrd Mat Mat Mat Fac Sto Gar Traps Triggered 4 | . . . . . 4 . Indirectly . | . . . . . . . Trap Hack Attempts . | . . . . . . . Triggered . | . . . . . . . Disarmed . | . . . . . . . Reprogrammed . | . . . . . . . Reused . | . . . . . . . Traps Extracted . | . . . . . . . Installed . | . . . . . . . Triggered . | . . . . . . . Machines | -11 -10 -9 -8 -7 -7 -7 ---------- Run | Yrd Mat Mat Mat Fac Sto Gar Machines Disabled 7 | . . 1 1 1 3 1 Max in Single Turn 1 | . . 1 1 1 1 1 Machines Repaired . | . . . . . . . Machines Dismantled . | . . . . . . . Machines Sabotaged . | . . . . . . . Overloaded Fab Kills . | . . . . . . . Hacking | -11 -10 -9 -8 -7 -7 -7 --------- Run | Yrd Mat Mat Mat Fac Sto Gar Machines Accessed 26 | . 3 6 2 5 10 . Terminals 19 | . 2 4 1 3 9 . Fabricators . | . . . . . . . Repair Stations 3 | . 1 . . 2 . . Recycling Units 2 | . . 2 . . . . Scanalyzers 1 | . . . 1 . . . Garrison Access 1 | . . . . . 1 . Total Hacks 53 | . 8 15 4 9 17 . Successful 27 | . 6 7 2 5 7 . Failed 26 | . 2 8 2 4 10 . Catastrophic 8 | . 1 . 1 1 5 . Database Lockouts . | . . . . . . . Manual 9 | . . 6 . 3 . . Terminals 39 | . 5 11 2 5 16 . Fabricators . | . . . . . . . Repair Stations 7 | . 3 . . 4 . . Recycling Units 4 | . . 4 . . . . Scanalyzers 2 | . . . 2 . . . Garrison Access 1 | . . . . . 1 . Terminal Hacks 15 | . 3 5 . 1 6 . Open Door 5 | . . . . . 5 . Emergency Access Points 1 | . . 1 . . . . Terminal Index 1 | . . 1 . . . . Alert Level 3 | . . 1 . 1 1 . Locate Traps 2 | . 2 . . . . . Maintenance Status 1 | . . 1 . . . . Zone Layout 2 | . 1 1 . . . . Fabricator Hacks . | . . . . . . . Repair Station Hacks 7 | . 3 . . 4 . . Scan Component 4 | . 2 . . 2 . . Repair 3 | . 1 . . 2 . . Recycling Unit Hacks . | . . . . . . . Scanalyzer 2 | . . . 2 . . . Insert Component 1 | . . . 1 . . . Analyze 1 | . . . 1 . . . Garrison Access Hacks 1 | . . . . . 1 . Unlock Access 1 | . . . . . 1 . Unauthorized Hacks 2 | . . 2 . . . . Terminals . | . . . . . . . Fabricators . | . . . . . . . Repair Stations . | . . . . . . . Recycling Units 2 | . . 2 . . . . Reject 1 | . . 1 . . . . Mask 1 | . . 1 . . . . Scanalyzers . | . . . . . . . Garrison Access . | . . . . . . . Data Cores Recovered . | . . . . . . . Used . | . . . . . . . Hacking Detections 19 | . 3 5 1 3 7 . Full Trace Events 1 | . . . 1 . . . Feedback Events . | . . . . . . . Feedback Blocked . | . . . . . . . Robot Schematics Acquired . | . . . . . . . Robots Built . | . . . . . . . Authchips . | . . . . . . . Time . | . . . . . . . Total Robot Build Rating . | . . . . . . . Part Schematics Acquired 1 | . . . 1 . . . Parts Built . | . . . . . . . Authchips . | . . . . . . . Time . | . . . . . . . Total Part Build Rating . | . . . . . . . Part Studies Acquired . | . . . . . . . Parts Repaired 3 | . 1 . . 2 . . Time 103 | . 26 . . 77 . . Parts Recycled . | . . . . . . . Recycled Matter . | . . . . . . . Retrieved Matter . | . . . . . . . Retrieved Components . | . . . . . . . Parts Scanalyzed 1 | . . . 1 . . . Part Schematics Acquired 1 | . . . 1 . . . Parts Damaged 1 | . . . 1 . . . Bothacking | -11 -10 -9 -8 -7 -7 -7 ------------ Run | Yrd Mat Mat Mat Fac Sto Gar Used RIF Installer . | . . . . . . . Robots Hacked 10 | . . 4 4 1 1 . Non-combat 10 | . . 4 4 1 1 . Combat . | . . . . . . . Robot Hacks Applied 12 | . . 5 4 2 1 . no_distress 9 | . . 4 4 1 . . find_recycling 1 | . . 1 . . . . find_station 1 | . . . . 1 . . check_alert 1 | . . . . . 1 . Relay Couplers Released . | . . . . . . . Fabnet Peak Effective % . | . . . . . . . Robots Rewired . | . . . . . . . Allies Hacked . | . . . . . . . Hacks Repelled . | . . . . . . . Allies | -11 -10 -9 -8 -7 -7 -7 -------- Run | Yrd Mat Mat Mat Fac Sto Gar Total Allies . | . . . . . . . Largest Group . | . . . . . . . Highest-Rated Group . | . . . . . . . Highest-Rated Ally . | . . . . . . . Total Orders 5 | . . . . . 3 2 ROAM 1 | . . . . . 1 . EXPLORE 3 | . . . . . 2 1 RETURN 1 | . . . . . . 1 Ally Attacks . | . . . . . . . Total Damage . | . . . . . . . Kills . | . . . . . . . Allies Corrupted . | . . . . . . . Allies Melted . | . . . . . . . Intel | -11 -10 -9 -8 -7 -7 -7 ------- Run | Yrd Mat Mat Mat Fac Sto Gar Active Infowar (turns) 6517 | 10 1126 3002 1537 325 326 191 Sensors 122 | . . . . 44 78 . Terrain 5326 | 10 499 2977 1537 209 94 . Structural 176 | . . . 40 17 119 . Traps 4474 | . . 2974 1031 183 95 191 Seismic 5217 | 9 801 2962 1445 . . . Jamming 2 | . . . . . 2 . Robot Analysis Total . | . . . . . . . Derelict Logs Recovered . | . . . . . . . Drone Launches 5 | . . . . . 3 2 Drone Recoveries 4 | . . . . . 2 2 Exploration | -11 -10 -9 -8 -7 -7 -7 ------------- Run | Yrd Mat Mat Mat Fac Sto Gar Turns Passed 7796 | 145 1126 3002 1537 325 1413 248 Spaces Moved 2150 | 89 235 548 403 194 607 74 Core 3 | 2 . . . . . 1 Treads . | . . . . . . . Legs 523 | . . . . . 450 73 Wheels 1280 | 87 235 548 402 8 . . Hover . | . . . . . . . Flight 344 | . . . 1 186 157 . Fastest Speed 34 | 50 100 80 80 34 34 120 Average Speed 91 | 98 100 80 87 37 112 127 Slowest Speed 435 | 100 100 100 260 107 435 350 Overloaded Moves . | . . . . . . . Propulsion Burnouts . | . . . . . . . Robots Hopped . | . . . . . . . Potential Cave-ins 3 | . 3 . . . . . Cave-ins Triggered . | . . . . . . . Exploration Rate (%) 27 | 4 22 44 20 8 74 21 Regions Visited 6 Branch Regions 1 Pre-discovered Areas . | . . . . . . . Known Exits Taken 1 | . . . . . 1 . Unknown Exits Taken 5 | 1 1 1 1 1 . . Scrap Searched . | . . . . . . . Spaces Dug 32 | . 21 6 5 . . . Terrain Destroyed 87 | . 25 16 5 . 1 40 Melee 4 | . . . 4 . . . Projectile 11 | . 2 6 1 . 1 1 AOE 72 | . 23 10 . . . 39 Terrain Rammed . | . . . . . . . Walls Destroyed . | . . . . . . . Machines Disabled . | . . . . . . . Actions | -11 -10 -9 -8 -7 -7 -7 --------- Run | Yrd Mat Mat Mat Fac Sto Gar Total 7515 | 119 1086 2997 1531 434 1180 168 Wait 4827 | . 815 2346 1041 192 398 35 Move 2144 | 88 234 547 402 193 606 74 Hop . | . . . . . . . Pick Up 44 | 9 4 3 11 9 7 1 Fast Attach 53 | 6 2 4 6 7 28 . Attach 21 | 1 . 6 1 4 5 4 Detach 10 | . 1 2 . 4 1 2 Swap 61 | 1 9 19 7 4 14 7 Drop 43 | 2 2 4 13 8 14 . Fire 250 | 12 19 60 26 10 79 44 Melee 61 | . . 6 24 3 28 . Ram . | . . . . . . . Kick 1 | . . . . . . 1 Crush . | . . . . . . . Escape Stasis . | . . . . . . . Rewire . | . . . . . . . Trap . | . . . . . . . Miscellaneous . | . . . . . . . Route ------- -11/Scrapyard -10/Materials -9/Materials -8/Materials -7/Factory -7/Storage (discovered 2 exits: [*Fac] / Gar) -7/Garrison History --------- Turn | Location | Event 2 | -11/Scrapyard | Met Revision 17 23 | -11/Scrapyard | Discovered new exit (range 15) 146 | -11/Scrapyard | Entered Materials 314 | -10/Materials | Build established: Mutant 1223 | -10/Materials | Discovered new exit (range 8) 1263 | -10/Materials | Repaired Seismic Detector 1272 | -10/Materials | Entered another Materials area 1272 | -9/Materials | Evolved 2 slots: Utility x2 1568 | -9/Materials | Build established: Scavenger-Mutant 2292 | -9/Materials | Core integrity fell below 50% 2323 | -9/Materials | Lost 3 parts (1p2u) 4265 | -9/Materials | Discovered new exit (range 8) 4274 | -9/Materials | Entered another Materials area 4274 | -8/Materials | Evolved 2 slots: Power x1, Propulsion x1 5809 | -8/Materials | Discovered new exit (range 3) 5811 | -8/Materials | Entered Factory 5811 | -7/Factory | Evolved 2 slots: Utility x2 5902 | -7/Factory | Repaired Adv. Beam Cannon 6057 | -7/Factory | Repaired Sml. Storage Unit 6131 | -7/Factory | Discovered new exit (range 16) 6133 | -7/Factory | Build established: Mutant 6136 | -7/Factory | Entered Storage 6279 | -7/Storage | Lost 8 parts (1p2n4u1w) 6487 | -7/Storage | Lost 7 parts (2p2n2u1w) 6621 | -7/Storage | Core integrity fell below 50% 6771 | -7/Storage | Build established: Scavenger-Mutant 6775 | -7/Storage | Met 01-MTF 6872 | -7/Storage | Garrison activated, responded to threat 7313 | -7/Storage | Discovered new exit (range 48) 7502 | -7/Storage | Build established: Mutant 7543 | -7/Storage | Identified exit to Garrison 7549 | -7/Storage | Entered Garrison 7549 | -7/Garrison | Accompanied by 1 ally (01-MTF) 7552 | -7/Garrison | 01-MTF left 7689 | -7/Garrison | Triggered checkpoint 7756 | -7/Garrison | Core integrity fell below 20% 7797 | -7/Garrison | Destroyed by Y-54 Guardian with Flak Gun Last Messages --------------- 07751_ G-47 Trooper knocked back. 07752_ Imp. Heat Sink destroyed. 07754_ Lgt. Nuclear Core destroyed. 07754_ Sml. Storage Unit destroyed. 07757_ Imp. Carbon-fiber Leg destroyed. 07759_ G-47 Trooper destroyed. 07759_ Imp. Carbon-fiber Leg destroyed. 07761_ Destroyed Imp. Heat Sink. 07761_ G-47 Trooper destroyed. 07766_ Critical hit (Burn: +37). 07770_ G-47 Trooper knocked back. 07773_ G-47 Trooper destroyed. 07774_ System corrupted: Component data lost. 07775_ Acquired 20 matter. 07777_ Acquired 2 matter. 07781_ Imp. Carbon-fiber Leg destroyed. 07791_ G-47 Trooper destroyed. 07792_ Prc. Assault Rifle destroyed. 07792_ G-47 Trooper overheating. 07797_ Cld. Deuterium Engine destroyed. Map ----- +----------------------------------------------------+ | ?????????????????????????????????????????????????? | | ?????????????????????????????????????????????????? | | ?????????????????????????????????????????????????? | | ?????????????????????????????????????????????????? | | ?????????????????????????????????????????????????? | | ?????????????????????????????????????????????????? | | ?????????????????????????????????????????????????? | | ?????????????????????????????????????????????????? | | ?????????????????????????????????????????????????? | | ?????????????????????????????????????????????????? | | ????????????????????##""""?#####?????????????????? | | ???????????????????? ? ?????????????????? | | ??????????????? ? ? ?????????????????? | | ???????????????? ?? ? ?????????????????? | | ????????????????# % ?# ?# #?????????????????? | | ????????????????# ## ## ###???????????????? | | ????????????????" Y #???????????????? | | ????????????????" %#???????????????? | | ?????????????????? g #???????????????? | | ????????????????" ?? ????????????????? | | ????????????????# ??# ## * #?????????????????? | | ???????????###### ## #=%[#?????????????????? | | ?????????? ^ g ! #?????????#???????? | | ?????????? [ #????????? ???????? | | ????????????????# !% #????????? ???????? | | ????????????????## ## @# #????????? ???????? | | ?????????????????????# ## #????????# ???????? | | ?????????????????????####### #????????# ???????? | | ???????????????????????????# #????????# #??????? | | ???????????????????????????# #????????# #??????? | | ???????????????????????????# ########?# #??????? | | ??????????????????????????## #? #??????? | | ??????????????????????????# ###### #?# #??????? | | ?????????????????????????## ! ###?# #?# #####??? | | ?????????????????????????# [% #?# #?# ## ####? | | ?????????????????????????## [* ###### ### # ## | | ??????????????????????????# [ | | ??????????????????????????# = | | ??????????????????????????# % | | ??????????????????????????## ## #### ### =# ### | | ???????????????????????????##### #??# #?# # #?? | | ???????????????????????????????###??# #?# ## #?? | | ????????????????????????????????????# #?########?? | | ????????????????????????????????????# #??? #?????? | | ????????????????????????????????????# ## ####??? | | ????????????????????????????????????# # | | ????????????????????????????????????##### ####" # | | ?????????????????????????????????????????????????? | | ?????????????????????????????????????????????????? | | ?????????????????????????????????????????????????? | +----------------------------------------------------+ Best States ------------- Heat Dissipation 76 Energy Generation 29 Energy Capacity 370 Matter Stores 300 Matter Capacity 300 Sight Range 16 Robot Scan Range 15 Terrain Scan Range 16 Terrain Scan Density 10 Additional Mass Support 6 Armor Coverage 300 Evasion (%) 63 Melee Accuracy 5 Offensive Hacking 10 Item Schematics ----------------- Weight Redist. System | -8/Materials | Scanalyzed Robot Schematics ------------------ None Fabricated ------------ Nothing Repaired ---------- Seismic Detector | 45% | -10/Materials Adv. Beam Cannon | 63% | -7/Factory Sml. Storage Unit | 68% | -7/Factory Studied --------- None Alien Tech Used ----------------- None Achievements -------------- Myspace Challenges ------------ None Game ------ Seed ThiefHugeMaul Manual? 0 Play Time 01:06:52 Cumulative 256.7 hours Start 2026.06.24 @ 23:42:49 End 2026.06.25 @ 00:55:28 Sessions 1 Manual Loads 0 Difficulty Rogue Special Mode None Game No. 398 Rogue 398 Adventurer 0 Explorer 0 Win Type - Total 0 Types 0/0/0/0/0/0/0/0/0/0 Lore% 46 Gallery% 49 Achievement% 30 Wizard Run 0 Options --------- Layout 0 ASCII 0 Keyboard 0 Movement Mouse Keybinds 0 Fullscreen 1 Font 18/SmallcapsGlow Map View 76x50 Zoom Use 0% Tactical HUD 1 Map Filters NONE Filters NONE Steam 1 RUN: 6c0d7b85-ddc0-4fe3-b8fa-1b3ef9c1e94f